[Event "January 9 Early 2024"]
[Site "https://www.chess.com"]
[Date "2024.01.11"]
[Round "3"]
[White "Smirnov, Alexandr A."]
[Black "Kadric, Denis"]
[Result "0-1"]
[Board "172"]
[TimeControl "180+1"]
[WhiteFideId "24104396"]
[BlackFideId "14403803"]
[WhiteElo "2661"]
[BlackElo "2909"]
[WhiteTeam "RUS"]
[BlackTeam "MNE"]
[WhiteClock "0:00:15"]
[BlackClock "0:00:06"]

1. e4 {[%clk 0:03:00]}  d6 {[%clk 0:02:59]} 2. d4 {[%clk 0:03:00]}  Nf6 {[%clk 0:02:59]} 3. Nc3 {[%clk 0:03:01]}  e5 {[%clk 0:03:00]} 4. Nf3 {[%clk 0:02:51]}  Nbd7 {[%clk 0:03:00]} 5. Bc4 {[%clk 0:02:51]}  Be7 {[%clk 0:03:01]} 6. O-O {[%clk 0:02:51]}  O-O {[%clk 0:03:01]} 7. a4 {[%clk 0:02:50]}  c6 {[%clk 0:03:02]} 8. a5 {[%clk 0:02:50]}  exd4 {[%clk 0:03:01]} 9. Qxd4 {[%clk 0:02:48]}  Qc7 {[%clk 0:03:01]} 10. b3 {[%clk 0:02:47]}  Ne5 {[%clk 0:03:00]} 11. Be2 {[%clk 0:02:43]}  Bg4 {[%clk 0:02:59]} 12. Nxe5 {[%clk 0:02:41]}  dxe5 {[%clk 0:03:00]} 13. Qe3 {[%clk 0:02:40]}  Bb4 {[%clk 0:02:51]} 14. Bxg4 {[%clk 0:02:36]}  Nxg4 {[%clk 0:02:52]} 15. Qg3 {[%clk 0:02:36]}  Bxa5 {[%clk 0:02:25]} 16. b4 {[%clk 0:01:49]}  Bxb4 {[%clk 0:01:44]} 17. Na2 {[%clk 0:01:49]}  Nxf2 {[%clk 0:01:31]} 18. Qxf2 {[%clk 0:01:48]}  Ba5 {[%clk 0:01:22]} 19. Qg3 {[%clk 0:01:44]}  f6 {[%clk 0:01:19]} 20. Ba3 {[%clk 0:01:31]}  Rf7 {[%clk 0:01:17]} 21. Rad1 {[%clk 0:01:30]}  Rd8 {[%clk 0:01:14]} 22. Rxd8+ {[%clk 0:01:24]}  Qxd8 {[%clk 0:01:15]} 23. Qg4 {[%clk 0:01:25]}  Qd7 {[%clk 0:01:06]} 24. Qe2 {[%clk 0:01:01]}  Qd4+ {[%clk 0:01:01]} 25. Kh1 {[%clk 0:01:00]}  Rd7 {[%clk 0:00:35]} 26. h3 {[%clk 0:01:00]}  Rd8 {[%clk 0:00:20]} 27. Qg4 {[%clk 0:00:46]}  Qc4 {[%clk 0:00:19]} 28. Ra1 {[%clk 0:00:32]}  h6 {[%clk 0:00:19]} 29. Be7 {[%clk 0:00:29]}  h5 {[%clk 0:00:10]} 30. Qg6 {[%clk 0:00:22]}  Rc8 {[%clk 0:00:07]} 31. Bxf6 {[%clk 0:00:22]}  Rc7 {[%clk 0:00:07]} 32. Bxe5 {[%clk 0:00:22]}  Rf7 {[%clk 0:00:08]} 33. Rd1 {[%clk 0:00:20]}  Qxa2 {[%clk 0:00:06]} 34. Qe6 {[%clk 0:00:15]}  Qxe6 {[%clk 0:00:06]} 0-1

[Event "January 9 Early 2024"]
[Site "https://www.chess.com"]
[Date "2024.01.11"]
[Round "3"]
[White "Carow, Johannes"]
[Black "Donchenko, Alexander"]
[Result "0-1"]
[Board "175"]
[TimeControl "180+1"]
[WhiteFideId "24692050"]
[BlackFideId "24603295"]
[WhiteElo "2708"]
[BlackElo "2945"]
[WhiteTeam "GER"]
[BlackTeam "GER"]
[WhiteClock "0:00:01"]
[BlackClock "0:00:07"]

1. d4 {[%clk 0:02:59]}  Nf6 {[%clk 0:02:59]} 2. c4 {[%clk 0:02:58]}  e6 {[%clk 0:03:00]} 3. Nc3 {[%clk 0:02:58]}  Bb4 {[%clk 0:03:00]} 4. Qc2 {[%clk 0:02:51]}  d5 {[%clk 0:02:59]} 5. a3 {[%clk 0:02:48]}  Bxc3+ {[%clk 0:02:59]} 6. Qxc3 {[%clk 0:02:49]}  O-O {[%clk 0:02:59]} 7. cxd5 {[%clk 0:02:45]}  Ne4 {[%clk 0:02:58]} 8. Qc2 {[%clk 0:02:46]}  exd5 {[%clk 0:02:58]} 9. Bf4 {[%clk 0:02:39]}  Nc6 {[%clk 0:02:55]} 10. e3 {[%clk 0:02:34]}  Re8 {[%clk 0:02:51]} 11. Nf3 {[%clk 0:02:30]}  Bg4 {[%clk 0:02:46]} 12. Bb5 {[%clk 0:01:55]}  Bxf3 {[%clk 0:02:39]} 13. gxf3 {[%clk 0:01:47]}  Nxd4 {[%clk 0:02:39]} 14. exd4 {[%clk 0:01:47]}  c6 {[%clk 0:02:28]} 15. fxe4 {[%clk 0:01:35]}  Rxe4+ {[%clk 0:02:23]} 16. Be3 {[%clk 0:01:32]}  cxb5 {[%clk 0:02:23]} 17. Rc1 {[%clk 0:01:25]}  h6 {[%clk 0:02:09]} 18. O-O {[%clk 0:01:17]}  Qh4 {[%clk 0:01:58]} 19. Kh1 {[%clk 0:01:14]}  Qh3 {[%clk 0:01:17]} 20. Rg1 {[%clk 0:00:55]}  Rh4 {[%clk 0:01:17]} 21. Rg2 {[%clk 0:00:43]}  Re8 {[%clk 0:01:17]} 22. Rcg1 {[%clk 0:00:35]}  Kh8 {[%clk 0:01:02]} 23. Qc7 {[%clk 0:00:34]}  Qf5 {[%clk 0:00:43]} 24. Qg3 {[%clk 0:00:24]}  g5 {[%clk 0:00:42]} 25. Rc1 {[%clk 0:00:18]}  Rh3 {[%clk 0:00:35]} 26. Qd6 {[%clk 0:00:18]}  Qf3 {[%clk 0:00:31]} 27. Kg1 {[%clk 0:00:16]}  Rxe3 {[%clk 0:00:22]} 28. Qf8+ {[%clk 0:00:09]}  Kh7 {[%clk 0:00:23]} 29. fxe3 {[%clk 0:00:09]}  Qxe3+ {[%clk 0:00:23]} 30. Rf2 {[%clk 0:00:09]}  Rf3 {[%clk 0:00:13]} 31. Rf1 {[%clk 0:00:04]}  Qxd4 {[%clk 0:00:13]} 32. Qc8 {[%clk 0:00:01]}  g4 {[%clk 0:00:07]} 0-1

[Event "January 9 Early 2024"]
[Site "https://www.chess.com"]
[Date "2024.01.11"]
[Round "3"]
[White "Devaev, Alexander"]
[Black "Ashraf, Artin"]
[Result "0-1"]
[Board "176"]
[TimeControl "180+1"]
[WhiteFideId "4169395"]
[BlackFideId "22514805"]
[WhiteElo "2521"]
[BlackElo "2910"]
[WhiteTeam "RUS"]
[BlackTeam "IRI"]
[WhiteClock "0:00:08"]
[BlackClock "0:00:10"]

1. d4 {[%clk 0:03:00]}  d5 {[%clk 0:02:57]} 2. Nf3 {[%clk 0:03:01]}  Nf6 {[%clk 0:02:52]} 3. c4 {[%clk 0:03:00]}  e6 {[%clk 0:02:52]} 4. Nc3 {[%clk 0:03:01]}  Nbd7 {[%clk 0:02:46]} 5. e3 {[%clk 0:03:01]}  b6 {[%clk 0:02:42]} 6. b3 {[%clk 0:03:01]}  Bb7 {[%clk 0:02:42]} 7. Bd3 {[%clk 0:03:01]}  Bd6 {[%clk 0:02:39]} 8. O-O {[%clk 0:03:01]}  O-O {[%clk 0:02:39]} 9. Bb2 {[%clk 0:03:02]}  a6 {[%clk 0:02:36]} 10. Qe2 {[%clk 0:03:02]}  c5 {[%clk 0:02:33]} 11. cxd5 {[%clk 0:03:02]}  exd5 {[%clk 0:01:49]} 12. Rfd1 {[%clk 0:02:59]}  Re8 {[%clk 0:01:48]} 13. Rac1 {[%clk 0:02:58]}  Qe7 {[%clk 0:01:45]} 14. Bf5 {[%clk 0:02:44]}  Rac8 {[%clk 0:01:38]} 15. Bxd7 {[%clk 0:02:32]}  Qxd7 {[%clk 0:01:34]} 16. Na4 {[%clk 0:02:24]}  Qd8 {[%clk 0:01:16]} 17. Ba3 {[%clk 0:01:33]}  Ne4 {[%clk 0:01:00]} 18. Rc2 {[%clk 0:01:18]}  c4 {[%clk 0:00:42]} 19. Bxd6 {[%clk 0:01:07]}  Qxd6 {[%clk 0:00:43]} 20. Rdc1 {[%clk 0:00:56]}  b5 {[%clk 0:00:41]} 21. Nc5 {[%clk 0:00:46]}  Nxc5 {[%clk 0:00:38]} 22. dxc5 {[%clk 0:00:47]}  Qxc5 {[%clk 0:00:36]} 23. Nd4 {[%clk 0:00:44]}  Qb6 {[%clk 0:00:32]} 24. b4 {[%clk 0:00:39]}  a5 {[%clk 0:00:24]} 25. a3 {[%clk 0:00:34]}  axb4 {[%clk 0:00:24]} 26. axb4 {[%clk 0:00:35]}  Ra8 {[%clk 0:00:24]} 27. h4 {[%clk 0:00:30]}  Ra4 {[%clk 0:00:19]} 28. Qg4 {[%clk 0:00:22]}  Rxb4 {[%clk 0:00:15]} 29. h5 {[%clk 0:00:17]}  Bc8 {[%clk 0:00:15]} 30. Qg5 {[%clk 0:00:17]}  Qd6 {[%clk 0:00:10]} 31. Qxg7+ {[%clk 0:00:07]}  Kxg7 {[%clk 0:00:09]} 32. Nf5+ {[%clk 0:00:08]}  Bxf5 {[%clk 0:00:10]} 0-1

[Event "January 9 Early 2024"]
[Site "https://www.chess.com"]
[Date "2024.01.11"]
[Round "3"]
[White "Topalov, Aleksandar"]
[Black "Yagupov, Igor"]
[Result "0-1"]
[Board "178"]
[TimeControl "180+1"]
[WhiteFideId "925659"]
[BlackFideId "4113632"]
[WhiteElo "2439"]
[BlackElo "2644"]
[WhiteTeam "SRB"]
[BlackTeam "RUS"]
[WhiteClock "0:00:02"]
[BlackClock "0:00:07"]

1. b3 {[%clk 0:03:00]}  e5 {[%clk 0:02:56]} 2. Bb2 {[%clk 0:03:00]}  Nc6 {[%clk 0:02:56]} 3. e3 {[%clk 0:03:00]}  Nf6 {[%clk 0:02:55]} 4. Bb5 {[%clk 0:02:59]}  Bd6 {[%clk 0:02:54]} 5. Na3 {[%clk 0:02:59]}  e4 {[%clk 0:02:45]} 6. Bxc6 {[%clk 0:02:56]}  bxc6 {[%clk 0:02:43]} 7. Nc4 {[%clk 0:02:56]}  Be7 {[%clk 0:02:42]} 8. Ne2 {[%clk 0:02:54]}  O-O {[%clk 0:02:39]} 9. O-O {[%clk 0:02:53]}  a5 {[%clk 0:02:27]} 10. Ng3 {[%clk 0:02:51]}  Ba6 {[%clk 0:02:10]} 11. Nf5 {[%clk 0:02:20]}  Re8 {[%clk 0:01:44]} 12. f3 {[%clk 0:01:59]}  d5 {[%clk 0:01:26]} 13. Ne5 {[%clk 0:01:59]}  Bd6 {[%clk 0:01:12]} 14. Nxd6 {[%clk 0:00:59]}  Qxd6 {[%clk 0:01:07]} 15. f4 {[%clk 0:00:48]}  Bxf1 {[%clk 0:01:05]} 16. Qxf1 {[%clk 0:00:47]}  Nd7 {[%clk 0:01:04]} 17. Nxd7 {[%clk 0:00:46]}  Qxd7 {[%clk 0:01:03]} 18. a4 {[%clk 0:00:45]}  c5 {[%clk 0:01:02]} 19. Qf2 {[%clk 0:00:45]}  Red8 {[%clk 0:00:55]} 20. Qg3 {[%clk 0:00:42]}  f5 {[%clk 0:00:53]} 21. Be5 {[%clk 0:00:40]}  Ra6 {[%clk 0:00:52]} 22. Qh3 {[%clk 0:00:29]}  d4 {[%clk 0:00:48]} 23. Qh4 {[%clk 0:00:21]}  Rh6 {[%clk 0:00:42]} 24. Qg3 {[%clk 0:00:19]}  Rg6 {[%clk 0:00:42]} 25. Qh3 {[%clk 0:00:19]}  c6 {[%clk 0:00:37]} 26. Rf1 {[%clk 0:00:17]}  dxe3 {[%clk 0:00:21]} 27. dxe3 {[%clk 0:00:16]}  Qd2 {[%clk 0:00:18]} 28. Bc7 {[%clk 0:00:11]}  Rd7 {[%clk 0:00:13]} 29. Be5 {[%clk 0:00:08]}  Rg4 {[%clk 0:00:12]} 30. c4 {[%clk 0:00:04]}  Qe2 {[%clk 0:00:10]} 31. g3 {[%clk 0:00:02]}  Rd2 {[%clk 0:00:07]} 0-1

[Event "January 9 Early 2024"]
[Site "https://www.chess.com"]
[Date "2024.01.11"]
[Round "3"]
[White "Velikanov, Alexander"]
[Black "Tan, Ralph"]
[Result "0-1"]
[Board "182"]
[TimeControl "180+1"]
[WhiteFideId "2039290"]
[BlackFideId "30966590"]
[WhiteElo "2806"]
[BlackElo "2538"]
[WhiteTeam "USA"]
[BlackTeam "USA"]
[WhiteClock "0:00:07"]
[BlackClock "0:00:14"]

1. e4 {[%clk 0:03:00]}  c6 {[%clk 0:02:59]} 2. d4 {[%clk 0:02:59]}  d5 {[%clk 0:03:00]} 3. Nc3 {[%clk 0:03:00]}  dxe4 {[%clk 0:03:00]} 4. Bc4 {[%clk 0:03:01]}  Nf6 {[%clk 0:03:01]} 5. f3 {[%clk 0:03:01]}  e3 {[%clk 0:02:51]} 6. Bxe3 {[%clk 0:03:00]}  Bf5 {[%clk 0:02:51]} 7. g4 {[%clk 0:03:00]}  Bg6 {[%clk 0:02:48]} 8. h4 {[%clk 0:03:00]}  h5 {[%clk 0:02:47]} 9. g5 {[%clk 0:02:56]}  Nd5 {[%clk 0:02:47]} 10. Qd2 {[%clk 0:02:53]}  e6 {[%clk 0:02:45]} 11. Ne4 {[%clk 0:02:45]}  Nd7 {[%clk 0:02:42]} 12. Ne2 {[%clk 0:02:30]}  N7b6 {[%clk 0:02:38]} 13. Bb3 {[%clk 0:02:30]}  a5 {[%clk 0:02:32]} 14. a3 {[%clk 0:02:30]}  a4 {[%clk 0:02:30]} 15. Ba2 {[%clk 0:02:31]}  Be7 {[%clk 0:02:17]} 16. O-O-O {[%clk 0:02:22]}  Nxe3 {[%clk 0:02:11]} 17. Qxe3 {[%clk 0:02:23]}  Nd5 {[%clk 0:02:11]} 18. Qd2 {[%clk 0:02:17]}  b5 {[%clk 0:02:11]} 19. Nf4 {[%clk 0:02:13]}  Bf5 {[%clk 0:02:03]} 20. g6 {[%clk 0:01:55]}  fxg6 {[%clk 0:01:58]} 21. Ng3 {[%clk 0:01:41]}  Qd6 {[%clk 0:01:50]} 22. Bxd5 {[%clk 0:01:37]}  cxd5 {[%clk 0:01:48]} 23. Nxf5 {[%clk 0:01:36]}  gxf5 {[%clk 0:01:46]} 24. Rde1 {[%clk 0:01:34]}  Rh6 {[%clk 0:01:45]} 25. Rhg1 {[%clk 0:01:29]}  Bxh4 {[%clk 0:01:31]} 26. Rxg7 {[%clk 0:01:26]}  Bxe1 {[%clk 0:01:25]} 27. Qe3 {[%clk 0:01:24]}  O-O-O {[%clk 0:01:22]} 28. Nd3 {[%clk 0:01:20]}  Rhh8 {[%clk 0:01:03]} 29. Qxe1 {[%clk 0:01:18]}  Qb6 {[%clk 0:00:58]} 30. Qg1 {[%clk 0:01:09]}  h4 {[%clk 0:00:55]} 31. Ne5 {[%clk 0:00:46]}  h3 {[%clk 0:00:48]} 32. Qe1 {[%clk 0:00:37]}  h2 {[%clk 0:00:25]} 33. Qc3+ {[%clk 0:00:35]}  Kb8 {[%clk 0:00:25]} 34. b3 {[%clk 0:00:16]}  h1=Q+ {[%clk 0:00:25]} 35. Kb2 {[%clk 0:00:16]}  Qh7 {[%clk 0:00:23]} 36. Qc6 {[%clk 0:00:06]}  Qxd4+ {[%clk 0:00:18]} 37. Ka2 {[%clk 0:00:06]}  Qxg7 {[%clk 0:00:16]} 38. Qxb5+ {[%clk 0:00:07]}  Qb7 {[%clk 0:00:13]} 39. Nc6+ {[%clk 0:00:07]}  Kc8 {[%clk 0:00:14]} 0-1

[Event "January 9 Early 2024"]
[Site "https://www.chess.com"]
[Date "2024.01.11"]
[Round "3"]
[White "Tuncer, Tuna"]
[Black "Teimouri Yadkuri, Shahdad"]
[Result "1-0"]
[Board "184"]
[TimeControl "180+1"]
[WhiteFideId "6349269"]
[BlackFideId "42515467"]
[WhiteElo "2624"]
[BlackElo "2425"]
[WhiteTeam "TUR"]
[BlackTeam "IRI"]
[WhiteClock "0:00:22"]
[BlackClock "0:00:15"]

1. e4 {[%clk 0:03:00]}  c5 {[%clk 0:02:59]} 2. Nf3 {[%clk 0:03:01]}  e6 {[%clk 0:02:59]} 3. c3 {[%clk 0:02:59]}  d5 {[%clk 0:02:59]} 4. e5 {[%clk 0:02:59]}  d4 {[%clk 0:02:58]} 5. d3 {[%clk 0:02:53]}  Nc6 {[%clk 0:02:57]} 6. Qe2 {[%clk 0:02:49]}  Nge7 {[%clk 0:02:56]} 7. h4 {[%clk 0:02:42]}  Qc7 {[%clk 0:02:48]} 8. h5 {[%clk 0:02:41]}  b5 {[%clk 0:02:39]} 9. Nbd2 {[%clk 0:02:29]}  Bb7 {[%clk 0:02:38]} 10. Nb3 {[%clk 0:02:21]}  Nd5 {[%clk 0:02:26]} 11. Bd2 {[%clk 0:02:13]}  Qb6 {[%clk 0:02:25]} 12. h6 {[%clk 0:02:07]}  gxh6 {[%clk 0:02:18]} 13. g3 {[%clk 0:01:58]}  O-O-O {[%clk 0:02:09]} 14. Bg2 {[%clk 0:01:57]}  c4 {[%clk 0:01:50]} 15. Nbxd4 {[%clk 0:01:44]}  cxd3 {[%clk 0:01:50]} 16. Qxd3 {[%clk 0:01:42]}  Ba6 {[%clk 0:01:50]} 17. Nxc6 {[%clk 0:01:38]}  Qxc6 {[%clk 0:01:50]} 18. Nd4 {[%clk 0:01:38]}  Qb6 {[%clk 0:01:40]} 19. Bf1 {[%clk 0:01:32]}  Bg7 {[%clk 0:01:35]} 20. Rh5 {[%clk 0:01:31]}  Nc7 {[%clk 0:01:23]} 21. Be3 {[%clk 0:01:17]}  b4 {[%clk 0:01:19]} 22. Qc2 {[%clk 0:00:58]}  bxc3 {[%clk 0:01:10]} 23. bxc3 {[%clk 0:00:57]}  Nd5 {[%clk 0:00:55]} 24. Rb1 {[%clk 0:00:53]}  Qa5 {[%clk 0:00:35]} 25. Nc6 {[%clk 0:00:53]}  Qa3 {[%clk 0:00:35]} 26. Rb3 {[%clk 0:00:41]}  Nxe3 {[%clk 0:00:20]} 27. fxe3 {[%clk 0:00:41]}  Qc5 {[%clk 0:00:20]} 28. Bxa6+ {[%clk 0:00:42]}  Kc7 {[%clk 0:00:20]} 29. Nd4 {[%clk 0:00:32]}  Rb8 {[%clk 0:00:19]} 30. Be2 {[%clk 0:00:24]}  Rxb3 {[%clk 0:00:19]} 31. axb3 {[%clk 0:00:25]}  Rb8 {[%clk 0:00:19]} 32. b4 {[%clk 0:00:25]}  Qd5 {[%clk 0:00:17]} 33. Qa4 {[%clk 0:00:25]}  Rb7 {[%clk 0:00:16]} 34. Bf3 {[%clk 0:00:24]}  Qc4 {[%clk 0:00:15]} 35. Bxb7 {[%clk 0:00:24]}  Qxc3+ {[%clk 0:00:16]} 36. Kf2 {[%clk 0:00:25]}  Qd2+ {[%clk 0:00:16]} 37. Ne2 {[%clk 0:00:25]}  Kxb7 {[%clk 0:00:16]} 38. Qb5+ {[%clk 0:00:24]}  Kc7 {[%clk 0:00:16]} 39. Qc5+ {[%clk 0:00:24]}  Kb7 {[%clk 0:00:17]} 40. Qe7+ {[%clk 0:00:24]}  Kb6 {[%clk 0:00:16]} 41. Qxf7 {[%clk 0:00:24]}  Qxb4 {[%clk 0:00:15]} 42. Qxg7 {[%clk 0:00:23]}  a5 {[%clk 0:00:16]} 43. Rh4 {[%clk 0:00:22]}  Qd2 {[%clk 0:00:15]} 44. Qe7 {[%clk 0:00:22]} 1-0

[Event "January 9 Early 2024"]
[Site "https://www.chess.com"]
[Date "2024.01.11"]
[Round "3"]
[White "Poormosavi, Seyed Kian"]
[Black "Iturrizaga Bonelli, Eduardo"]
[Result "0-1"]
[Board "185"]
[TimeControl "180+1"]
[WhiteFideId "12585807"]
[BlackFideId "3901211"]
[WhiteElo "2735"]
[BlackElo "2992"]
[WhiteTeam "IRI"]
[BlackTeam "ESP"]
[WhiteClock "0:00:12"]
[BlackClock "0:00:15"]

1. Nf3 {[%clk 0:02:54]}  Nf6 {[%clk 0:02:59]} 2. g3 {[%clk 0:02:55]}  b6 {[%clk 0:02:58]} 3. Bg2 {[%clk 0:02:55]}  Bb7 {[%clk 0:02:59]} 4. O-O {[%clk 0:02:56]}  c5 {[%clk 0:02:57]} 5. b3 {[%clk 0:02:55]}  g6 {[%clk 0:02:56]} 6. Bb2 {[%clk 0:02:55]}  Bg7 {[%clk 0:02:57]} 7. c4 {[%clk 0:02:56]}  O-O {[%clk 0:02:57]} 8. Nc3 {[%clk 0:02:56]}  e6 {[%clk 0:02:56]} 9. d4 {[%clk 0:02:56]}  Qe7 {[%clk 0:02:57]} 10. Qd2 {[%clk 0:02:44]}  Na6 {[%clk 0:02:50]} 11. Rfd1 {[%clk 0:02:39]}  Rfd8 {[%clk 0:02:27]} 12. Rac1 {[%clk 0:02:33]}  d5 {[%clk 0:02:19]} 13. cxd5 {[%clk 0:02:30]}  exd5 {[%clk 0:02:14]} 14. e3 {[%clk 0:02:21]}  Ne4 {[%clk 0:02:00]} 15. Qe1 {[%clk 0:02:16]}  Rac8 {[%clk 0:01:56]} 16. Nxe4 {[%clk 0:02:03]}  dxe4 {[%clk 0:01:55]} 17. Ne5 {[%clk 0:02:03]}  Nb4 {[%clk 0:01:24]} 18. a3 {[%clk 0:01:58]}  Na6 {[%clk 0:01:04]} 19. Qe2 {[%clk 0:01:37]}  Nc7 {[%clk 0:01:03]} 20. Nc4 {[%clk 0:01:30]}  cxd4 {[%clk 0:00:58]} 21. Bxd4 {[%clk 0:01:30]}  Bxd4 {[%clk 0:00:56]} 22. Rxd4 {[%clk 0:01:20]}  Rxd4 {[%clk 0:00:53]} 23. exd4 {[%clk 0:01:21]}  Nb5 {[%clk 0:00:49]} 24. Qd2 {[%clk 0:01:17]}  Rd8 {[%clk 0:00:44]} 25. Re1 {[%clk 0:01:04]}  Nxd4 {[%clk 0:00:41]} 26. Qc3 {[%clk 0:01:00]}  h5 {[%clk 0:00:34]} 27. h4 {[%clk 0:01:00]}  Kh7 {[%clk 0:00:30]} 28. a4 {[%clk 0:00:59]}  Qf6 {[%clk 0:00:23]} 29. Qa1 {[%clk 0:00:13]}  Ne2+ {[%clk 0:00:19]} 30. Kh2 {[%clk 0:00:13]}  Qxa1 {[%clk 0:00:19]} 31. Rxa1 {[%clk 0:00:13]}  Nd4 {[%clk 0:00:17]} 32. Rd1 {[%clk 0:00:13]}  f5 {[%clk 0:00:15]} 33. a5 {[%clk 0:00:12]}  b5 {[%clk 0:00:14]} 34. Na3 {[%clk 0:00:11]}  a6 {[%clk 0:00:14]} 35. Nc2 {[%clk 0:00:11]}  Ne6 {[%clk 0:00:14]} 36. Rxd8 {[%clk 0:00:11]}  Nxd8 {[%clk 0:00:15]} 37. Nd4 {[%clk 0:00:11]}  Nc6 {[%clk 0:00:14]} 38. Nxc6 {[%clk 0:00:11]}  Bxc6 {[%clk 0:00:14]} 39. b4 {[%clk 0:00:12]}  Kg7 {[%clk 0:00:14]} 40. Kg1 {[%clk 0:00:12]}  Kf6 {[%clk 0:00:15]} 41. Bf1 {[%clk 0:00:12]}  Ke5 {[%clk 0:00:15]} 0-1

[Event "January 9 Early 2024"]
[Site "https://www.chess.com"]
[Date "2024.01.11"]
[Round "3"]
[White "Svane, Frederik"]
[Black "Yurovskykh, Oleksandr"]
[Result "1-0"]
[Board "186"]
[TimeControl "180+1"]
[WhiteFideId "12923044"]
[BlackFideId "14134020"]
[WhiteElo "2996"]
[BlackElo "2613"]
[WhiteTeam "GER"]
[BlackTeam "UKR"]
[WhiteClock "0:00:23"]
[BlackClock "0:00:10"]

1. e4 {[%clk 0:03:00]}  e6 {[%clk 0:02:58]} 2. d4 {[%clk 0:03:01]}  d5 {[%clk 0:02:57]} 3. Nd2 {[%clk 0:03:01]}  dxe4 {[%clk 0:02:57]} 4. Nxe4 {[%clk 0:03:02]}  Bd7 {[%clk 0:02:58]} 5. Nf3 {[%clk 0:03:02]}  Bc6 {[%clk 0:02:58]} 6. Bd3 {[%clk 0:03:02]}  Nd7 {[%clk 0:02:58]} 7. Ng3 {[%clk 0:03:03]}  Ngf6 {[%clk 0:02:58]} 8. O-O {[%clk 0:03:03]}  g6 {[%clk 0:02:58]} 9. c4 {[%clk 0:02:54]}  Bg7 {[%clk 0:02:58]} 10. Be3 {[%clk 0:02:46]}  O-O {[%clk 0:02:57]} 11. Qe2 {[%clk 0:02:36]}  Bxf3 {[%clk 0:02:52]} 12. Qxf3 {[%clk 0:02:37]}  c6 {[%clk 0:02:53]} 13. Rad1 {[%clk 0:02:37]}  Re8 {[%clk 0:02:45]} 14. Rfe1 {[%clk 0:02:36]}  Qa5 {[%clk 0:02:40]} 15. a3 {[%clk 0:02:29]}  Rad8 {[%clk 0:02:36]} 16. Bd2 {[%clk 0:02:18]}  Qb6 {[%clk 0:02:29]} 17. Bc3 {[%clk 0:02:19]}  Qc7 {[%clk 0:02:11]} 18. Bc2 {[%clk 0:02:19]}  b5 {[%clk 0:02:07]} 19. b3 {[%clk 0:02:10]}  Nb6 {[%clk 0:01:46]} 20. Qe2 {[%clk 0:02:09]}  bxc4 {[%clk 0:01:43]} 21. bxc4 {[%clk 0:02:09]}  c5 {[%clk 0:01:44]} 22. dxc5 {[%clk 0:01:56]}  Qxc5 {[%clk 0:01:37]} 23. Bxf6 {[%clk 0:01:57]}  Bxf6 {[%clk 0:01:31]} 24. Ne4 {[%clk 0:01:57]}  Qe7 {[%clk 0:01:28]} 25. c5 {[%clk 0:01:58]}  Nd5 {[%clk 0:01:26]} 26. Qc4 {[%clk 0:01:40]}  Rc8 {[%clk 0:01:08]} 27. Bb3 {[%clk 0:01:19]}  Red8 {[%clk 0:00:56]} 28. g3 {[%clk 0:01:05]}  Rc7 {[%clk 0:00:45]} 29. Qa6 {[%clk 0:00:53]}  Bg7 {[%clk 0:00:19]} 30. Rd3 {[%clk 0:00:42]}  Rdc8 {[%clk 0:00:17]} 31. Nd6 {[%clk 0:00:38]}  Rd8 {[%clk 0:00:14]} 32. Rxd5 {[%clk 0:00:34]}  Qf6 {[%clk 0:00:08]} 33. Ne4 {[%clk 0:00:32]}  Qe7 {[%clk 0:00:05]} 34. Rxd8+ {[%clk 0:00:32]}  Qxd8 {[%clk 0:00:06]} 35. Rd1 {[%clk 0:00:32]}  Qb8 {[%clk 0:00:06]} 36. Qc4 {[%clk 0:00:26]}  h5 {[%clk 0:00:06]} 37. Ba4 {[%clk 0:00:23]}  Bf8 {[%clk 0:00:07]} 38. Rd7 {[%clk 0:00:21]}  Qc8 {[%clk 0:00:07]} 39. Rxc7 {[%clk 0:00:21]}  Qxc7 {[%clk 0:00:08]} 40. Kg2 {[%clk 0:00:21]}  Kg7 {[%clk 0:00:08]} 41. c6 {[%clk 0:00:21]}  f5 {[%clk 0:00:09]} 42. Qd4+ {[%clk 0:00:21]}  e5 {[%clk 0:00:09]} 43. Qd7+ {[%clk 0:00:22]}  Qxd7 {[%clk 0:00:09]} 44. cxd7 {[%clk 0:00:22]}  Be7 {[%clk 0:00:10]} 45. Nd6 {[%clk 0:00:23]} 1-0

[Event "January 9 Early 2024"]
[Site "https://www.chess.com"]
[Date "2024.01.11"]
[Round "3"]
[White "Llorente Zaro, Alfonso"]
[Black "Pujari, Rucha"]
[Result "1-0"]
[Board "187"]
[TimeControl "180+1"]
[WhiteFideId "2254131"]
[BlackFideId "5024528"]
[WhiteElo "2715"]
[BlackElo "2497"]
[WhiteTeam "ESP"]
[BlackTeam "IND"]
[WhiteClock "0:00:09"]
[BlackClock "0:00:01"]

1. e4 {[%clk 0:03:00]}  e5 {[%clk 0:02:59]} 2. Nf3 {[%clk 0:02:58]}  Nc6 {[%clk 0:02:59]} 3. Nc3 {[%clk 0:02:57]}  Nf6 {[%clk 0:02:56]} 4. h3 {[%clk 0:02:57]}  Be7 {[%clk 0:02:49]} 5. d4 {[%clk 0:02:51]}  exd4 {[%clk 0:02:42]} 6. Nxd4 {[%clk 0:02:52]}  O-O {[%clk 0:02:42]} 7. Be3 {[%clk 0:02:45]}  Bb4 {[%clk 0:02:32]} 8. Bd3 {[%clk 0:02:38]}  Re8 {[%clk 0:02:19]} 9. Nxc6 {[%clk 0:02:05]}  bxc6 {[%clk 0:02:17]} 10. O-O {[%clk 0:02:06]}  Bxc3 {[%clk 0:02:14]} 11. bxc3 {[%clk 0:02:07]}  Nxe4 {[%clk 0:02:12]} 12. Qh5 {[%clk 0:02:04]}  d5 {[%clk 0:02:03]} 13. Rfe1 {[%clk 0:02:00]}  g6 {[%clk 0:01:52]} 14. Qf3 {[%clk 0:02:00]}  Nxc3 {[%clk 0:01:46]} 15. Bh6 {[%clk 0:01:04]}  Bd7 {[%clk 0:01:20]} 16. Bxg6 {[%clk 0:01:03]}  fxg6 {[%clk 0:00:57]} 17. Qxc3 {[%clk 0:01:02]}  Re7 {[%clk 0:00:53]} 18. Rxe7 {[%clk 0:00:56]}  Qxe7 {[%clk 0:00:50]} 19. Re1 {[%clk 0:00:57]}  Qf7 {[%clk 0:00:48]} 20. Re3 {[%clk 0:00:41]}  Re8 {[%clk 0:00:38]} 21. Rf3 {[%clk 0:00:37]}  Qe7 {[%clk 0:00:37]} 22. Re3 {[%clk 0:00:34]}  Qf7 {[%clk 0:00:32]} 23. Rf3 {[%clk 0:00:27]}  Qe7 {[%clk 0:00:31]} 24. Kh2 {[%clk 0:00:26]}  Bf5 {[%clk 0:00:15]} 25. Re3 {[%clk 0:00:20]}  Qd6+ {[%clk 0:00:10]} 26. Kg1 {[%clk 0:00:20]}  Re7 {[%clk 0:00:03]} 27. Bf4 {[%clk 0:00:10]}  Rxe3 {[%clk 0:00:03]} 28. Qxe3 {[%clk 0:00:10]}  Qe6 {[%clk 0:00:03]} 29. Qxa7 {[%clk 0:00:09]}  Qe1+ {[%clk 0:00:03]} 30. Kh2 {[%clk 0:00:09]}  Qe4 {[%clk 0:00:01]} 31. Qb8+ {[%clk 0:00:09]} 1-0